[Event "Teplice Open 2019"]
[Site "Teplice"]
[Date "2019.06.15"]
[Round "1.31"]
[White "Vogel, Roven"]
[Black "Tuma, Jan"]
[Result "1-0"]
[ECO "E18"]
[WhiteElo "2471"]
[BlackElo "2033"]
[Annotator "ChessBase"]
[PlyCount "51"]
[EventDate "2019.06.15"]
[EventType "swiss"]
[EventCountry "CZE"]
[SourceTitle "playchess.com"]
[Source "ChessBase"]
[SourceQuality "1"]
[TimeControl "40/5400+30:1800+30"]

1. d4 {[%emt 0:00:00]} Nf6 {[%emt 0:01:11]} 2. c4 {[%emt 0:00:00]} e6 {[%emt 0:03:26]} 3. Nf3 {[%emt 0:00:00]} d5 {[%emt 0:01:42]} 4. g3 {[%emt 0:00:01]} Be7 {[%emt 0:01:37]} 5. Bg2 {[%emt 0:00:36]} O-O {[%emt 0:00:37]} 6. O-O {[%emt 0:00:53]} b6 {[%emt 0:01:58]} 7. cxd5 {[%emt 0:04:52]} exd5 {[%emt 0:02:23]} 8. Nc3 {[%emt 0:00:17]} Bb7 {[%emt 0:00:51]} 9. Ne5 {[%emt 0:03:11]} a6 {[%emt 0:14:00]} 10. Qb3 {[%emt 0:02:14]} Ne4 {[%emt 0:13:50]} 11. Rd1 {[%emt 0:03:28]} Qd6 {[%emt 0:12:50]} 12. Bxe4 {[%emt 0:04:39]} dxe4 {[%emt 0:00:46]} 13. Bf4 {[%emt 0:00:12]} Qd8 {[%emt 0:09:38]} 14. Qc2 {[%emt 0:13:33]} Kh8 {[%emt 0:09:58]} 15. d5 {[%emt 0:01:05]} f5 {[%emt 0:02:57]} 16. Nc6 {[%emt 0:03:32]} Bxc6 {[%emt 0:05:24]} 17. dxc6 {[%emt 0:00:08]} Qe8 {[%emt 0:03:36]} 18. Nd5 {[%emt 0:00:17]} Qxc6 {[%emt 0:02:00]} 19. Rac1 {[%emt 0:00:21]} Qxc2 {[%emt 0:04:01]} 20. Rxc2 {[%emt 0:00:02]} Bc5 {[%emt 0:03:01]} 21. b4 {[%emt 0:00:34]} Bd6 {[%emt 0:01:46]} 22. Nxc7 {[%emt 0:00:16]} Bxc7 {[%emt 0:00:19]} 23. Rxc7 {[%emt 0:00:10]} h6 {[%emt 0:01:13]} 24. Be5 {[%emt 0:00:35]} Rg8 {[%emt 0:00:18]} 25. Rd6 {[%emt 0:00:09]} Kh7 {[%emt 0:00:32]} 26. Rxb6 {[%emt 0:00:52]} 1-0

[Event "Teplice Open 2019"]
[Site "Teplice"]
[Date "2019.06.15"]
[Round "1.32"]
[White "Christiansen, Arne"]
[Black "Cernousek, Lukas"]
[Result "1/2-1/2"]
[ECO "A87"]
[WhiteElo "2033"]
[BlackElo "2466"]
[Annotator "ChessBase"]
[PlyCount "60"]
[EventDate "2019.06.15"]
[EventType "swiss"]
[EventCountry "CZE"]
[SourceTitle "playchess.com"]
[Source "ChessBase"]
[SourceQuality "1"]
[TimeControl "40/5400+30:1800+30"]

1. d4 {[%emt 0:00:33]} f5 {[%emt 0:01:57]} 2. c4 {[%emt 0:01:06]} Nf6 {[%emt 0:00:43]} 3. Nf3 {[%emt 0:00:44]} g6 {[%emt 0:01:09]} 4. Nc3 {[%emt 0:01:08]} Bg7 {[%emt 0:00:41]} 5. g3 {[%emt 0:01:21]} O-O {[%emt 0:00:42]} 6. Bg2 {[%emt 0:00:42]} d6 {[%emt 0:00:37]} 7. O-O {[%emt 0:00:47]} Qe8 {[%emt 0:00:36]} 8. d5 {[%emt 0:02:06]} Na6 {[%emt 0:03:01]} 9. Be3 {[%emt 0:03:24]} c6 {[%emt 0:03:52]} 10. Qd2 {[%emt 0:04:23]} Ng4 {[%emt 0:01:31]} 11. Bf4 {[%emt 0:02:47]} Nc5 {[%emt 0:34:48]} 12. Rac1 {[%emt 0:12:12]} h6 {[%emt 0:10:45]} 13. h4 {[%emt 0:13:52]} a5 {[%emt 0:07:36]} 14. Rfe1 {[%emt 0:08:22]} Ne4 {[%emt 0:22:08]} 15. Nxe4 {[%emt 0:03:05]} fxe4 {[%emt 0:00:32]} 16. Nh2 {[%emt 0:02:10]} e3 {[%emt 0:01:04]} 17. Bxe3 {[%emt 0:02:26]} Nxe3 {[%emt 0:00:32]} 18. Qxe3 {[%emt 0:00:55]} Bxb2 {[%emt 0:00:32]} 19. Rb1 {[%emt 0:04:49]} Bg7 {[%emt 0:00:31]} 20. c5 {[%emt 0:02:45]} dxc5 {[%emt 0:05:29]} 21. Qxc5 {[%emt 0:00:51]} cxd5 {[%emt 0:12:05]} 22. Bxd5+ {[%emt 0:00:22]} Kh8 {[%emt 0:02:07]} 23. Bxb7 {[%emt 0:00:31]} Bxb7 {[%emt 0:01:18]} 24. Rxb7 {[%emt 0:00:08]} Rc8 {[%emt 0:00:04]} 25. Qe3 {[%emt 0:03:49]} Rc3 {[%emt 0:01:43]} 26. Qe4 {[%emt 0:00:30]} Qf7 {[%emt 0:00:37]} 27. Nf3 {[%emt 0:00:17]} Rc4 {[%emt 0:00:31]} 28. Qe3 {[%emt 0:01:32]} Rc3 {[%emt 0:00:40]} 29. Qe4 {[%emt 0:00:14]} Rc4 {[%emt 0:00:05]} 30. Qe3 {[%emt 0:00:06]} Rc3 {[%emt 0:00:12]} 1/2-1/2

[Event "Teplice Open 2019"]
[Site "Teplice"]
[Date "2019.06.15"]
[Round "1.33"]
[White "Abdumalik, Zhansaya"]
[Black "Olsen, Aage Dalstrup"]
[Result "1-0"]
[ECO "B75"]
[WhiteElo "2464"]
[BlackElo "2031"]
[Annotator "ChessBase"]
[PlyCount "83"]
[EventDate "2019.06.15"]
[EventType "swiss"]
[EventCountry "CZE"]
[SourceTitle "playchess.com"]
[Source "ChessBase"]
[SourceQuality "1"]
[TimeControl "40/5400+30:1800+30"]

1. e4 {[%emt 0:00:00]} c5 {[%emt 0:00:00]} 2. Nf3 {[%emt 0:00:00]} d6 {[%emt 0:00:00]} 3. d4 {[%emt 0:00:00]} cxd4 {[%emt 0:00:00]} 4. Nxd4 {[%emt 0:00:00]} Nf6 {[%emt 0:00:05]} 5. Nc3 {[%emt 0:00:00]} g6 {[%emt 0:00:28]} 6. Be3 {[%emt 0:01:12]} Bg7 {[%emt 0:00:11]} 7. f3 {[%emt 0:00:46]} h5 {[%emt 0:00:14]} 8. Qd2 {[%emt 0:02:26]} Bd7 {[%emt 0:00:08]} 9. O-O-O {[%emt 0:03:39]} Nc6 {[%emt 0:00:12]} 10. Kb1 {[%emt 0:00:25]} a6 {[%emt 0:01:04]} 11. h4 {[%emt 0:05:50]} Rc8 {[%emt 0:02:44]} 12. Nxc6 {[%emt 0:06:43]} Bxc6 {[%emt 0:00:12]} 13. Bd4 {[%emt 0:00:29]} Qc7 {[%emt 0:01:37]} 14. Bd3 {[%emt 0:10:48]} b5 {[%emt 0:06:45]} 15. Nd5 {[%emt 0:01:30]} Bxd5 {[%emt 0:01:31]} 16. exd5 {[%emt 0:03:24]} Qb7 {[%emt 0:02:48]} 17. Rhe1 {[%emt 0:12:35]} Kf8 {[%emt 0:13:53]} 18. Bf1 {[%emt 0:03:52]} Rc7 {[%emt 0:06:02]} 19. Qa5 {[%emt 0:03:50]} Ne8 {[%emt 0:02:25]} 20. Bf2 {[%emt 0:05:00]} Bf6 {[%emt 0:04:28]} 21. Re4 {[%emt 0:00:58]} Rc8 {[%emt 0:04:48]} 22. g3 {[%emt 0:03:39]} Be5 {[%emt 0:04:54]} 23. Qd2 {[%emt 0:04:08]} Nf6 {[%emt 0:01:33]} 24. Rb4 {[%emt 0:01:59]} Qc7 {[%emt 0:03:00]} 25. c4 {[%emt 0:00:31]} bxc4 {[%emt 0:03:24]} 26. Qc2 {[%emt 0:07:18]} Nd7 {[%emt 0:07:44]} 27. Rxc4 {[%emt 0:01:03]} Nc5 {[%emt 0:00:36]} 28. b4 {[%emt 0:01:41]} Qb7 {[%emt 0:04:41]} 29. Kc1 {[%emt 0:02:26]} Rb8 {[%emt 0:03:21]} 30. bxc5 {[%emt 0:01:11]} Bb2+ {[%emt 0:02:19]} 31. Kd2 {[%emt 0:00:09]} Qxd5+ {[%emt 0:00:23]} 32. Qd3 {[%emt 0:02:29]} Qe6 {[%emt 0:01:55]} 33. Re1 {[%emt 0:01:30]} Qf6 {[%emt 0:00:50]} 34. c6 {[%emt 0:01:15]} Kg7 {[%emt 0:01:39]} 35. c7 {[%emt 0:00:23]} Rbc8 {[%emt 0:00:19]} 36. Bh3 {[%emt 0:00:18]} e6 {[%emt 0:00:13]} 37. Rb1 {[%emt 0:01:07]} Be5 {[%emt 0:01:40]} 38. Rc6 {[%emt 0:02:00]} d5 {[%emt 0:00:32]} 39. Rb7 {[%emt 0:00:13]} Qe7 {[%emt 0:02:06]} 40. f4 {[%emt 0:01:12]} Bd6 {[%emt 0:02:10]} 41. Bd4+ {[%emt 0:30:46]} f6 {[%emt 0:30:10]} 42. Rbb6 {[%emt 0:01:26]} 1-0

[Event "Teplice Open 2019"]
[Site "Teplice"]
[Date "2019.06.15"]
[Round "1.34"]
[White "Popovic, Martin"]
[Black "Haldorsen, Benjamin"]
[Result "0-1"]
[ECO "C84"]
[WhiteElo "2021"]
[BlackElo "2454"]
[Annotator "ChessBase"]
[PlyCount "64"]
[EventDate "2019.06.15"]
[EventType "swiss"]
[EventCountry "CZE"]
[SourceTitle "playchess.com"]
[Source "ChessBase"]
[SourceQuality "1"]
[TimeControl "40/5400+30:1800+30"]

1. e4 {[%emt 0:00:00]} e5 {[%emt 0:00:38]} 2. Nf3 {[%emt 0:00:00]} Nc6 {[%emt 0:00:05]} 3. Bb5 {[%emt 0:00:00]} a6 {[%emt 0:00:21]} 4. Ba4 {[%emt 0:00:00]} Nf6 {[%emt 0:00:14]} 5. O-O {[%emt 0:00:39]} Be7 {[%emt 0:03:20]} 6. c3 {[%emt 0:02:45]} Nxe4 {[%emt 0:04:45]} 7. Re1 {[%emt 0:06:06]} Nc5 {[%emt 0:01:54]} 8. Bxc6 {[%emt 0:02:43]} dxc6 {[%emt 0:02:02]} 9. Nxe5 {[%emt 0:01:11]} Nd3 {[%emt 0:03:06]} 10. Qf3 {[%emt 0:10:26]} Nxe5 {[%emt 0:03:10]} 11. Rxe5 {[%emt 0:00:03]} Be6 {[%emt 0:04:18]} 12. d4 {[%emt 0:01:36]} Qd7 {[%emt 0:04:57]} 13. a4 {[%emt 0:05:42]} O-O-O {[%emt 0:04:44]} 14. b4 {[%emt 0:09:55]} Bxb4 {[%emt 0:04:13]} 15. Ba3 {[%emt 0:02:06]} f6 {[%emt 0:04:29]} 16. Re1 {[%emt 0:05:32]} Bd5 {[%emt 0:02:37]} 17. Qd3 {[%emt 0:05:32]} Rhe8 {[%emt 0:00:33]} 18. Rc1 {[%emt 0:11:43]} Bxa3 {[%emt 0:08:12]} 19. Nxa3 {[%emt 0:00:34]} Qg4 {[%emt 0:00:33]} 20. f3 {[%emt 0:03:55]} Qg6 {[%emt 0:00:39]} 21. Qxg6 {[%emt 0:02:13]} hxg6 {[%emt 0:00:01]} 22. Kf2 {[%emt 0:00:14]} Bb3 {[%emt 0:00:49]} 23. a5 {[%emt 0:02:00]} c5 {[%emt 0:01:38]} 24. Rab1 {[%emt 0:02:57]} Bf7 {[%emt 0:00:27]} 25. Rd1 {[%emt 0:01:11]} cxd4 {[%emt 0:00:55]} 26. Rxd4 {[%emt 0:01:13]} Rxd4 {[%emt 0:00:02]} 27. cxd4 {[%emt 0:00:07]} Rd8 {[%emt 0:00:13]} 28. Nc2 {[%emt 0:03:11]} g5 {[%emt 0:00:37]} 29. Ke3 {[%emt 0:02:53]} Bg6 {[%emt 0:00:04]} 30. Rc1 {[%emt 0:00:09]} Rd5 {[%emt 0:00:06]} 31. Na3 {[%emt 0:00:12]} Rxa5 {[%emt 0:00:36]} 32. Nc4 {[%emt 0:00:04]} Ra2 {[%emt 0:00:08]} 0-1

[Event "Teplice Open 2019"]
[Site "Teplice"]
[Date "2019.06.15"]
[Round "1.35"]
[White "Song, Raymond"]
[Black "Hlavina, Matous"]
[Result "1-0"]
[ECO "C11"]
[WhiteElo "2450"]
[BlackElo "2006"]
[Annotator "ChessBase"]
[PlyCount "77"]
[EventDate "2019.06.15"]
[EventType "swiss"]
[EventCountry "CZE"]
[SourceTitle "playchess.com"]
[Source "ChessBase"]
[SourceQuality "1"]
[TimeControl "40/5400+30:1800+30"]

1. e4 {[%emt 0:00:00]} e6 {[%emt 0:00:00]} 2. d4 {[%emt 0:00:00]} d5 {[%emt 0:00:00]} 3. Nc3 {[%emt 0:00:00]} Nf6 {[%emt 0:00:50]} 4. e5 {[%emt 0:00:00]} Nfd7 {[%emt 0:00:05]} 5. Nce2 {[%emt 0:00:10]} c5 {[%emt 0:00:40]} 6. c3 {[%emt 0:00:10]} Nc6 {[%emt 0:01:04]} 7. Nf3 {[%emt 0:00:35]} a6 {[%emt 0:01:30]} 8. Nf4 {[%emt 0:01:26]} b5 {[%emt 0:02:13]} 9. Bd3 {[%emt 0:01:08]} Be7 {[%emt 0:02:25]} 10. Be3 {[%emt 0:07:57]} Qb6 {[%emt 0:02:43]} 11. h4 {[%emt 0:04:25]} h6 {[%emt 0:06:42]} 12. Rh3 {[%emt 0:01:37]} Bb7 {[%emt 0:02:47]} 13. Rg3 {[%emt 0:04:06]} g6 {[%emt 0:05:42]} 14. Nxe6 {[%emt 0:03:59]} Ncxe5 {[%emt 0:12:22]} 15. Nxc5 {[%emt 0:04:31]} Nxf3+ {[%emt 0:04:01]} 16. Qxf3 {[%emt 0:00:06]} Nxc5 {[%emt 0:01:08]} 17. dxc5 {[%emt 0:00:05]} Bxc5 {[%emt 0:06:28]} 18. Bxc5 {[%emt 0:09:35]} Qxc5 {[%emt 0:01:45]} 19. Kf1 {[%emt 0:01:02]} O-O-O {[%emt 0:04:06]} 20. a4 {[%emt 0:00:27]} d4 {[%emt 0:01:38]} 21. Be4 {[%emt 0:02:44]} Qc4+ {[%emt 0:01:28]} 22. Kg1 {[%emt 0:00:19]} Bxe4 {[%emt 0:01:20]} 23. Qxe4 {[%emt 0:00:02]} Qd5 {[%emt 0:02:54]} 24. Qxd5 {[%emt 0:04:17]} Rxd5 {[%emt 0:00:08]} 25. axb5 {[%emt 0:00:03]} Rxb5 {[%emt 0:01:59]} 26. Rxa6 {[%emt 0:00:11]} Rxb2 {[%emt 0:01:40]} 27. Ra8+ {[%emt 0:05:36]} Rb8 {[%emt 0:00:14]} 28. Rxb8+ {[%emt 0:00:01]} Kxb8 {[%emt 0:00:11]} 29. cxd4 {[%emt 0:00:01]} Rd8 {[%emt 0:00:58]} 30. h5 {[%emt 0:00:39]} Rd6 {[%emt 0:03:42]} 31. Rf3 {[%emt 0:00:38]} Rd7 {[%emt 0:01:12]} 32. hxg6 {[%emt 0:00:12]} fxg6 {[%emt 0:00:11]} 33. Rf6 {[%emt 0:00:06]} Rg7 {[%emt 0:02:40]} 34. Kh2 {[%emt 0:00:15]} Kc7 {[%emt 0:00:40]} 35. Kg3 {[%emt 0:00:02]} Kd7 {[%emt 0:00:49]} 36. Kf4 {[%emt 0:00:12]} Rg8 {[%emt 0:00:43]} 37. d5 {[%emt 0:01:01]} Ke7 {[%emt 0:00:43]} 38. Ke5 {[%emt 0:00:05]} Rg7 {[%emt 0:01:08]} 39. Ra6 {[%emt 0:00:01]} 1-0

[Event "Teplice Open 2019"]
[Site "Teplice"]
[Date "2019.06.15"]
[Round "1.36"]
[White "Mindl, Josef"]
[Black "Ankit, R. Rajpara"]
[Result "0-1"]
[ECO "E54"]
[WhiteElo "1995"]
[BlackElo "2447"]
[Annotator "NA"]
[PlyCount "68"]
[EventDate "2019.06.15"]
[EventType "swiss"]
[EventCountry "CZE"]
[SourceTitle "playchess.com"]
[Source "ChessBase"]
[SourceQuality "1"]
[TimeControl "40/5400+30:1800+30"]

1. e4 {[%emt 0:00:00]} c6 {[%emt 0:00:00]} 2. d4 {[%emt 0:00:00]} d5 {[%emt 0:00:00]} 3. exd5 {[%emt 0:00:18]} cxd5 {[%emt 0:00:04]} 4. c4 {[%emt 0:00:30]} Nf6 {[%emt 0:00:09]} 5. Nc3 {[%emt 0:00:32]} e6 {[%emt 0:00:09]} 6. Nf3 {[%emt 0:01:33]} Bb4 {[%emt 0:00:40]} 7. Bd3 {[%emt 0:10:17]} dxc4 {[%emt 0:01:02]} 8. Bxc4 {[%emt 0:00:11]} O-O {[%emt 0:00:21]} 9. O-O {[%emt 0:01:39]} b6 {[%emt 0:00:42]} 10. Bg5 {[%emt 0:07:41]} Bb7 {[%emt 0:00:47]} 11. Rc1 {[%emt 0:03:12]} Nbd7 {[%emt 0:06:02]} 12. a3 {[%emt 0:14:32]} Bxc3 {[%emt 0:01:34]} 13. bxc3 {[%emt 0:02:11]} Qc7 {[%emt 0:01:57]} 14. Bd3 {[%emt 0:01:51]} Ng4 {[%emt 0:01:57]} 15. g3 {[%emt 0:05:04]} Qc6 {[%emt 0:02:34]} 16. Be2 {[%emt 0:05:52]} h6 {[%emt 0:04:55]} 17. h3 {[%emt 0:06:03]} Nxf2 {[%emt 0:05:26]} 18. Rxf2 {[%emt 0:00:34]} hxg5 {[%emt 0:00:08]} 19. Kh2 {[%emt 0:05:05]} f6 {[%emt 0:04:36]} 20. Qb3 {[%emt 0:03:30]} Rfe8 {[%emt 0:03:23]} 21. Bb5 {[%emt 0:03:22]} Qd6 {[%emt 0:03:18]} 22. Re1 {[%emt 0:02:53]} Re7 {[%emt 0:01:03]} 23. a4 {[%emt 0:04:22]} Nf8 {[%emt 0:01:24]} 24. Nd2 {[%emt 0:03:37]} Rd8 {[%emt 0:07:56]} 25. Ne4 {[%emt 0:05:25]} Qc7 {[%emt 0:02:33]} 26. Rfe2 {[%emt 0:02:55]} Bd5 {[%emt 0:04:26]} 27. Qb4 {[%emt 0:02:27]} Rf7 {[%emt 0:08:25]} 28. Qb2 {[%emt 0:02:15]} Bc4 {[%emt 0:00:00]} 29. Re3 {[%emt 0:03:05]} Bxb5 {[%emt 0:02:27]} 30. Qxb5 {[%emt 0:00:13]} Rfd7 {[%emt 0:00:50]} 31. Ra1 {[%emt 0:03:11]} Rd5 {[%emt 0:00:27]} 32. Qe2 {[%emt 0:02:47]} e5 {[%emt 0:04:17]} 33. Qa2 {[%emt 0:01:52]} exd4 {[%emt 0:00:57]} 34. cxd4 {[%emt 0:00:00]} Qf7 {[%emt 0:00:54]} 0-1

[Event "Teplice Open 2019"]
[Site "Teplice"]
[Date "2019.06.15"]
[Round "1.37"]
[White "Arenberg, Ariel"]
[Black "Stastny, Petr"]
[Result "1-0"]
[ECO "D46"]
[WhiteElo "2434"]
[BlackElo "1991"]
[Annotator "NA"]
[PlyCount "29"]
[EventDate "2019.06.15"]
[EventType "swiss"]
[EventCountry "CZE"]
[SourceTitle "playchess.com"]
[Source "ChessBase"]
[SourceQuality "1"]
[TimeControl "40/5400+30:1800+30"]

1. d4 {[%emt 0:00:00]} d5 {[%emt 0:00:00]} 2. c4 {[%emt 0:00:03]} e6 {[%emt 0:00:30]} 3. Nc3 {[%emt 0:01:22]} c6 {[%emt 0:00:58]} 4. Nf3 {[%emt 0:01:14]} Nd7 {[%emt 0:02:43]} 5. e4 {[%emt 0:14:16]} dxe4 {[%emt 0:00:21]} 6. Nxe4 {[%emt 0:00:06]} Ngf6 {[%emt 0:00:16]} 7. Bd3 {[%emt 0:03:13]} Nxe4 {[%emt 0:02:18]} 8. Bxe4 {[%emt 0:00:27]} Bb4+ {[%emt 0:02:59]} 9. Bd2 {[%emt 0:05:23]} Qa5 {[%emt 0:04:34]} 10. O-O {[%emt 0:04:56]} O-O {[%emt 0:06:49]} 11. Bf4 {[%emt 0:09:13]} Be7 {[%emt 0:07:00]} 12. Re1 {[%emt 0:04:11]} Nf6 {[%emt 0:03:35]} 13. Bc2 {[%emt 0:02:44]} Qh5 {[%emt 0:04:00]} 14. Re5 {[%emt 0:01:39]} Qg4 {[%emt 0:00:29]} 15. Bg3 {[%emt 0:04:29]} 1-0

[Event "Teplice Open 2019"]
[Site "Teplice"]
[Date "2019.06.16"]
[Round "2.7"]
[White "Simek, Petr"]
[Black "Van Foreest, Jorden"]
[Result "1/2-1/2"]
[ECO "D30"]
[WhiteElo "2300"]
[BlackElo "2610"]
[Annotator "ChessBase"]
[PlyCount "210"]
[EventDate "2019.06.15"]
[EventType "swiss"]
[EventCountry "CZE"]
[SourceTitle "playchess.com"]
[Source "ChessBase"]
[SourceQuality "1"]
[TimeControl "40/5400+30:1800+30"]

1. d4 {[%emt 0:00:00]} d5 {[%emt 0:00:00]} 2. c4 {[%emt 0:00:00]} e6 {[%emt 0:00:05]} 3. Nf3 {[%emt 0:01:37]} a6 {[%emt 0:00:50]} 4. Bg5 {[%emt 0:17:07]} Be7 {[%emt 0:00:44]} 5. Bxe7 {[%emt 0:00:11]} Qxe7 {[%emt 0:00:24]} 6. Nbd2 {[%emt 0:11:38]} Nf6 {[%emt 0:01:30]} 7. g3 {[%emt 0:01:20]} dxc4 {[%emt 0:09:16]} 8. Nxc4 {[%emt 0:01:15]} b5 {[%emt 0:07:55]} 9. Na5 {[%emt 0:01:51]} O-O {[%emt 0:12:19]} 10. Bg2 {[%emt 0:00:18]} c5 {[%emt 0:00:34]} 11. dxc5 {[%emt 0:01:19]} Qxc5 {[%emt 0:00:18]} 12. O-O {[%emt 0:02:57]} b4 {[%emt 0:00:18]} 13. Nb3 {[%emt 0:15:05]} Qe7 {[%emt 0:01:34]} 14. Ne5 {[%emt 0:00:30]} Bb7 {[%emt 0:02:03]} 15. Bxb7 {[%emt 0:01:04]} Qxb7 {[%emt 0:00:12]} 16. Qd4 {[%emt 0:00:07]} Qb5 {[%emt 0:04:33]} 17. e3 {[%emt 0:03:56]} Nbd7 {[%emt 0:07:45]} 18. Nxd7 {[%emt 0:01:02]} Nxd7 {[%emt 0:00:19]} 19. Rfd1 {[%emt 0:14:07]} Ne5 {[%emt 0:05:06]} 20. Qe4 {[%emt 0:01:02]} f5 {[%emt 0:03:53]} 21. Qf4 {[%emt 0:02:59]} h6 {[%emt 0:03:37]} 22. h4 {[%emt 0:04:14]} Rad8 {[%emt 0:01:59]} 23. Rd4 {[%emt 0:02:14]} a5 {[%emt 0:16:00]} 24. Rad1 {[%emt 0:01:09]} Rxd4 {[%emt 0:01:30]} 25. exd4 {[%emt 0:00:33]} Qe2 {[%emt 0:00:33]} 26. Rf1 {[%emt 0:01:36]} Nd3 {[%emt 0:01:05]} 27. Qe3 {[%emt 0:03:18]} Qxe3 {[%emt 0:00:14]} 28. fxe3 {[%emt 0:00:04]} Nxb2 {[%emt 0:04:29]} 29. Nxa5 {[%emt 0:00:09]} Rc8 {[%emt 0:00:12]} 30. Rb1 {[%emt 0:00:49]} Nd3 {[%emt 0:00:05]} 31. Nb3 {[%emt 0:03:17]} Rc2 {[%emt 0:01:32]} 32. Nc5 {[%emt 0:02:02]} Rc1+ {[%emt 0:08:42]} 33. Rxc1 {[%emt 0:00:07]} Nxc1 {[%emt 0:00:04]} 34. Nxe6 {[%emt 0:00:13]} Nxa2 {[%emt 0:00:06]} 35. Nc5 {[%emt 0:00:22]} Kf7 {[%emt 0:01:40]} 36. Kf2 {[%emt 0:04:04]} Ke7 {[%emt 0:01:34]} 37. Kf3 {[%emt 0:01:54]} Nc1 {[%emt 0:00:14]} 38. e4 {[%emt 0:01:27]} b3 {[%emt 0:01:07]} 39. Na4 {[%emt 0:00:06]} Ke6 {[%emt 0:01:05]} 40. g4 {[%emt 0:01:12]} fxg4+ {[%emt 0:00:51]} 41. Kxg4 {[%emt 0:30:55]} Nd3 {[%emt 0:32:21]} 42. Nc3 {[%emt 0:00:00]} b2 {[%emt 0:00:00]} 43. Kf3 {[%emt 0:00:00]} Ne1+ {[%emt 0:00:00]} 44. Kf4 {[%emt 0:00:00]} Ng2+ {[%emt 0:00:00]} 45. Kg3 {[%emt 0:00:00]} Ne3 {[%emt 0:00:00]} 46. Kf4 {[%emt 0:00:00]} Nc4 {[%emt 0:00:00]} 47. h5 {[%emt 0:00:00]} Nb6 {[%emt 0:00:00]} 48. d5+ {[%emt 0:00:00]} Kd6 {[%emt 0:00:00]} 49. Kf5 {[%emt 0:00:00]} Nd7 {[%emt 0:00:00]} 50. Kg6 {[%emt 0:02:48]} Nf6 {[%emt 0:00:00]} 51. Kxg7 {[%emt 0:00:11]} Nxh5+ {[%emt 0:00:00]} 52. Kxh6 {[%emt 0:00:05]} Nf6 {[%emt 0:00:00]} 53. Kg6 {[%emt 0:00:50]} Ke5 {[%emt 0:00:00]} 54. d6 {[%emt 0:00:12]} Nxe4 {[%emt 0:00:00]} 55. d7 {[%emt 0:00:10]} Nxc3 {[%emt 0:00:00]} 56. d8=Q {[%emt 0:00:05]} b1=Q+ {[%emt 0:00:00]} 57. Kg7 {[%emt 0:00:27]} Qg1+ {[%emt 0:00:00]} 58. Kf7 {[%emt 0:00:14]} Qf2+ {[%emt 0:00:00]} 59. Kg7 {[%emt 0:00:19]} Qg2+ {[%emt 0:00:00]} 60. Kf7 {[%emt 0:00:10]} Qf3+ {[%emt 0:00:00]} 61. Kg7 {[%emt 0:00:31]} Qg4+ {[%emt 0:00:00]} 62. Kf7 {[%emt 0:00:15]} Qe6+ {[%emt 0:00:00]} 63. Kg7 {[%emt 0:00:06]} Ne4 {[%emt 0:00:08]} 64. Qa5+ {[%emt 0:00:30]} Kf4 {[%emt 0:00:09]} 65. Qc7+ {[%emt 0:02:26]} Kg4 {[%emt 0:00:11]} 66. Qf7 {[%emt 0:00:54]} Qe5+ {[%emt 0:00:24]} 67. Kf8 {[%emt 0:00:05]} Ng5 {[%emt 0:01:16]} 68. Qd7+ {[%emt 0:03:05]} Kg3 {[%emt 0:00:06]} 69. Kg8 {[%emt 0:00:09]} Kh4 {[%emt 0:00:43]} 70. Qa4+ {[%emt 0:00:39]} Ne4 {[%emt 0:02:12]} 71. Kf7 {[%emt 0:01:21]} Kg5 {[%emt 0:00:08]} 72. Qd7 {[%emt 0:00:26]} Nd6+ {[%emt 0:03:27]} 73. Kg8 {[%emt 0:00:21]} Qd5+ {[%emt 0:00:06]} 74. Kf8 {[%emt 0:00:17]} Qa8+ {[%emt 0:00:22]} 75. Kg7 {[%emt 0:00:40]} Nf5+ {[%emt 0:00:22]} 76. Kh7 {[%emt 0:00:22]} Qh1+ {[%emt 0:02:11]} 77. Kg8 {[%emt 0:00:12]} Qg2 {[%emt 0:03:46]} 78. Qe6 {[%emt 0:01:25]} Qa8+ {[%emt 0:02:26]} 79. Kf7 {[%emt 0:00:09]} Qb7+ {[%emt 0:00:14]} 80. Kf8 {[%emt 0:00:06]} Qb8+ {[%emt 0:00:16]} 81. Kf7 {[%emt 0:00:10]} Qb7+ {[%emt 0:01:02]} 82. Kf8 {[%emt 0:00:06]} Qc7 {[%emt 0:00:53]} 83. Qg8+ {[%emt 0:01:55]} Kf4 {[%emt 0:00:27]} 84. Qe6 {[%emt 0:00:13]} Qb8+ {[%emt 0:01:35]} 85. Kf7 {[%emt 0:00:06]} Qb7+ {[%emt 0:00:10]} 86. Kf8 {[%emt 0:00:08]} Kg5 {[%emt 0:01:02]} 87. Qg8+ {[%emt 0:00:17]} Kf6 {[%emt 0:00:04]} 88. Qh8+ {[%emt 0:00:04]} Ke6 {[%emt 0:00:03]} 89. Qg8+ {[%emt 0:00:11]} Kd6 {[%emt 0:00:23]} 90. Qg6+ {[%emt 0:00:41]} Ke5 {[%emt 0:00:02]} 91. Qe8+ {[%emt 0:00:15]} Kf6 {[%emt 0:00:27]} 92. Qd8+ {[%emt 0:00:06]} Kg6 {[%emt 0:00:06]} 93. Qe8+ {[%emt 0:00:04]} Kh6 {[%emt 0:00:09]} 94. Qe6+ {[%emt 0:00:50]} Kg5 {[%emt 0:00:05]} 95. Qg8+ {[%emt 0:00:39]} Kf6 {[%emt 0:00:13]} 96. Qh8+ {[%emt 0:00:04]} Ke6 {[%emt 0:00:11]} 97. Qg8+ {[%emt 0:00:13]} Kd6 {[%emt 0:00:37]} 98. Qg6+ {[%emt 0:00:07]} Ke5 {[%emt 0:00:03]} 99. Qe8+ {[%emt 0:00:24]} Kf4 {[%emt 0:00:26]} 100. Qe6 {[%emt 0:00:05]} Qc7 {[%emt 0:00:06]} 101. Qf6 {[%emt 0:00:57]} Qd7 {[%emt 0:00:04]} 102. Kg8 {[%emt 0:01:21]} Ke4 {[%emt 0:00:02]} 103. Kf8 {[%emt 0:00:39]} Qe7+ {[%emt 0:00:36]} 104. Qxe7+ {[%emt 0:00:06]} Nxe7 {[%emt 0:00:03]} 105. Kxe7 {[%emt 0:00:05]} Ke5 {[%emt 0:00:08]} 1/2-1/2

[Event "Teplice Open 2019"]
[Site "Teplice"]
[Date "2019.06.16"]
[Round "2.8"]
[White "Lagarde, Maxime"]
[Black "Van Zyl-Rudd, Jack"]
[Result "1-0"]
[ECO "B22"]
[WhiteElo "2599"]
[BlackElo "2299"]
[Annotator "ChessBase"]
[PlyCount "51"]
[EventDate "2019.06.15"]
[EventType "swiss"]
[EventCountry "CZE"]
[SourceTitle "playchess.com"]
[Source "ChessBase"]
[SourceQuality "1"]
[TimeControl "40/5400+30:1800+30"]

1. e4 {[%emt 0:00:00]} c5 {[%emt 0:00:00]} 2. c3 {[%emt 0:00:00]} Nf6 {[%emt 0:00:44]} 3. e5 {[%emt 0:00:00]} Nd5 {[%emt 0:00:20]} 4. Nf3 {[%emt 0:00:00]} e6 {[%emt 0:00:56]} 5. d4 {[%emt 0:00:07]} cxd4 {[%emt 0:00:29]} 6. cxd4 {[%emt 0:00:07]} d6 {[%emt 0:00:31]} 7. a3 {[%emt 0:00:05]} Be7 {[%emt 0:01:31]} 8. Bd3 {[%emt 0:00:36]} O-O {[%emt 0:00:36]} 9. O-O {[%emt 0:00:18]} b6 {[%emt 0:08:10]} 10. Qe2 {[%emt 0:05:02]} Bb7 {[%emt 0:04:38]} 11. Qe4 {[%emt 0:00:41]} g6 {[%emt 0:00:07]} 12. Bh6 {[%emt 0:00:18]} Re8 {[%emt 0:01:20]} 13. Nbd2 {[%emt 0:03:41]} Nd7 {[%emt 0:07:10]} 14. Qg4 {[%emt 0:01:13]} dxe5 {[%emt 0:18:25]} 15. dxe5 {[%emt 0:00:10]} Rc8 {[%emt 0:03:04]} 16. Rfe1 {[%emt 0:08:34]} Qc7 {[%emt 0:05:58]} 17. h4 {[%emt 0:02:48]} Nc5 {[%emt 0:07:13]} 18. Bf1 {[%emt 0:05:18]} Qd7 {[%emt 0:13:38]} 19. b4 {[%emt 0:15:19]} Qa4 {[%emt 0:02:52]} 20. h5 {[%emt 0:15:56]} Nb3 {[%emt 0:04:23]} 21. hxg6 {[%emt 0:01:28]} hxg6 {[%emt 0:00:01]} 22. Bd3 {[%emt 0:05:41]} Nxd2 {[%emt 0:00:42]} 23. Bxg6 {[%emt 0:08:08]} Nxf3+ {[%emt 0:00:05]} 24. gxf3 {[%emt 0:00:03]} Kh8 {[%emt 0:01:43]} 25. Bg7+ {[%emt 0:00:26]} Kg8 {[%emt 0:00:15]} 26. Be4 {[%emt 0:01:09]} 1-0